bitfinex-derivatives/quotes_ETHF0:USTF0_20250810
["timestamp","ask_amount","ask_price","bid_price","bid_amount"]
[1754843781707,1.2455,4238.1,4238.0,1.10647]
[1754843781907,22.8395,4238.1,4238.0,2.01557]
[1754843782303,23.109,4238.1,4238.0,2.01557]
[1754843783612,23.109,4238.1,4238.0,0.4308]
[1754843783809,0.6103,4237.8,4237.7,0.4719]
[1754843784014,23.109,4237.8,4237.7,0.9027]
[1754843784409,23.109,4237.8,4237.7,0.4308]
[1754843784611,23.109,4237.8,4237.7,0.2543]
[1754843785411,23.109,4237.8,4237.7,0.6125]
[1754843785610,23.109,4237.8,4237.7,0.8695]
[1754843785805,23.109,4237.8,4237.7,1.2673]
[1754843786011,23.109,4237.8,4237.7,1.5437]
[1754843786416,22.8395,4237.8,4237.7,1.5437]
[1754843786619,23.109,4237.8,4237.7,1.5437]
[1754843788209,0.47183,4238.5,4237.8,0.2543]
[1754843788412,22.8395,4238.4,4238.3,2.01553]
[1754843788710,0.9905,4239.0,4238.9,0.64827]
[1754843788911,22.853,4239.0,4238.9,1.08427]
[1754843789119,0.9905,4239.0,4238.9,2.01547]
[1754843789413,1.7103,4239.5,4239.4,0.64822]
[1754843789619,23.3033,4239.5,4239.4,2.01542]
[1754843789822,23.5728,4239.5,4239.4,2.01542]
[1754843790020,24.208,4239.5,4239.4,2.01542]
[1754843790416,24.67971,4239.5,4239.4,1.5437]
[1754843790823,24.67971,4239.5,4239.4,0.6125]
[1754843791216,0.64413,4239.3,4239.2,0.82993]
[1754843791422,1.63994,4239.2,4239.1,0.4308]
[1754843791618,0.982,4238.9,4238.8,1.5437]
[1754843791925,23.106,4238.9,4238.8,0.6125]
[1754843792926,22.8365,4238.9,4238.8,1.5437]
[1754843793326,0.9905,4239.3,4239.2,2.01544]
[1754843793528,22.5815,4239.3,4239.2,2.01544]
[1754843793727,22.4071,4239.3,4239.2,2.01544]
[1754843793918,1.1,4239.5,4239.2,2.01544]
[1754843794124,1.1,4239.5,4239.4,2.01542]
[1754843794624,1.1,4239.5,4239.4,2.01035489]
[1754843795021,0.6103,4240.5,4240.4,0.47161]
[1754843795222,22.8355,4240.5,4240.4,2.01531]
[1754843795530,0.55445471,4241.2,4240.4,2.01531]
[1754843795531,0.00989173,4241.5,4241.4,0.47149]
[1754843795721,1.69380475,4243.6,4241.7,1.17864]
[1754843795927,0.90494848,4243.3,4242.9,0.47132]
[1754843796125,0.64324848,4243.3,4242.9,0.47132]
[1754843796632,0.6629,4242.8,4241.5,0.19245653]
[1754843796828,0.3844,4242.3,4241.9,0.47143]
[1754843797130,0.64324848,4243.3,4240.8,1.92875616]
[1754843797131,0.5402,4243.2,4240.9,3.0456589]
[1754843797433,0.74986616,4243.1,4242.3,0.47138]
[1754843797619,0.74986616,4243.1,4240.9,1.17888]
[1754843797620,0.9246,4242.5,4241.9,0.47144]
[1754843797825,0.3844,4241.9,4240.4,0.23191625]
[1754843798030,0.5402,4241.5,4241.0,0.47153]
[1754843798328,22.08,4241.9,4241.3,0.4715]
[1754843798329,0.9246,4241.4,4241.3,0.4715]
[1754843798535,22.08,4241.9,4240.0,4.19703534]
[1754843798536,0.3844,4241.5,4241.0,0.47153]
[1754843798735,0.3844,4241.3,4241.0,0.47153]
[1754843799032,0.2617,4241.2,4241.0,0.47153]
[1754843799334,0.2785,4241.7,4241.4,0.47148]
[1754843799527,0.2617,4241.5,4241.4,0.47148]
[1754843799724,22.067,4242.6,4240.6,1.17897]
[1754843800029,0.47141,4242.2,4241.1,0.47152]
[1754843800229,0.47141,4242.2,4240.1,1.1791]
[1754843800230,0.9246,4242.4,4241.4,0.47149]
[1754843800429,1.75305874,4242.5,4241.4,0.47149]
[1754843800729,0.47144,4241.9,4241.0,0.47153]
[1754843800932,0.2785,4241.4,4239.7,1.17921]
[1754843801127,0.9246,4241.2,4239.7,1.17921]
[1754843801327,0.9246,4241.2,4239.0,33.975]
[1754843801328,0.9246,4241.2,4240.4,0.4716]
[1754843801521,0.3844,4240.8,4240.1,0.47164]
[1754843801726,0.47156,4240.8,4239.9,0.47166]
[1754843801926,0.47155,4240.9,4240.2,0.47163]
[1754843802222,0.3844,4240.7,4240.0,0.47164]
[1754843802432,0.9246,4240.5,4240.0,0.47164]
[1754843802632,22.072,4240.6,4240.0,0.47164]
[1754843802936,0.9246,4240.5,4240.0,0.47164]
[1754843803235,0.9246,4240.5,4237.8,34.15634231]
[1754843803236,0.9246,4240.5,4238.4,1.17957]
[1754843803537,0.9246,4239.8,4239.1,0.47175]
[1754843803725,0.9246,4239.6,4239.1,0.47175]
[1754843803923,22.065,4239.7,4239.1,0.47175]
[1754843804127,0.9246,4239.5,4239.3,0.47172]
[1754843804327,0.9246,4239.4,4239.3,0.47172]
[1754843805730,0.5402,4239.4,4239.3,0.47172]
[1754843805936,0.3844,4239.8,4238.2,1.17964]
[1754843805937,0.5402,4239.8,4239.7,0.47169]
[1754843806237,0.2617,4240.1,4240.0,0.47165]
[1754843806826,1.75319874,4241.2,4239.6,1.17923]
[1754843806827,0.2617,4241.2,4239.6,1.17923]
[1754843807033,0.9246,4241.0,4240.9,0.47155]
[1754843807433,0.9246,4241.6,4241.5,0.47149]
[1754843807832,1.1,4243.5,4243.0,0.47131]
[1754843808030,0.9246,4243.2,4243.0,0.47131]
[1754843808235,0.2617,4243.1,4243.0,0.47131]
[1754843808532,1.1,4243.5,4242.9,0.47132]
[1754843808533,0.9246,4243.0,4242.9,0.47132]
[1754843809839,0.9246,4243.0,4241.9,1.1786]
[1754843809840,0.3844,4243.0,4241.9,1.1786]
[1754843810139,0.9246,4243.0,4242.5,0.47137]
[1754843810438,0.9246,4242.9,4242.5,0.47137]
[1754843810637,0.9246,4242.9,4241.0,3.11148845]
[1754843810638,0.5402,4242.7,4242.4,0.47138]
[1754843810940,0.9246,4242.9,4242.4,0.47138]
[1754843811136,1.1,4243.5,4240.0,22.176]
[1754843811334,0.9246,4243.2,4242.9,0.47133]
[1754843811531,0.9246,4243.2,4243.1,0.4713]
[1754843812539,1.1,4243.5,4243.1,0.4713]
[1754843812938,0.2617,4243.2,4243.1,0.4713]
[1754843813438,0.9246,4243.2,4243.1,0.4713]
[1754843813732,0.6629,4243.2,4242.0,1.17856]
[1754843813937,0.5402,4242.8,4241.5,1.17872]
[1754843814134,0.47135,4242.8,4241.5,1.17872]
[1754843814334,0.9246,4242.6,4242.4,0.47137]
[1754843814537,0.9246,4242.5,4242.4,0.47137]
[1754843816634,0.9246,4242.6,4241.2,1.17879]
[1754843816834,22.186,4242.7,4241.2,1.17879]
[1754843816835,0.9246,4242.5,4241.2,1.17879]
[1754843817136,0.9246,4242.4,4242.1,0.47141]
[1754843817337,0.2785,4242.2,4242.1,0.47141]
[1754843817639,0.9246,4242.2,4242.1,0.47141]
[1754843817841,0.47141,4242.3,4241.9,0.47144]
[1754843818040,0.3844,4242.1,4241.9,0.47144]
[1754843818229,0.9246,4242.0,4241.9,0.47144]
[1754843818743,0.9246,4242.0,4241.0,1.17885]
[1754843818744,0.9246,4242.0,4241.8,0.47145]
[1754843818943,0.6461,4241.9,4241.7,0.47146]
[1754843819239,0.3844,4241.8,4241.5,0.47148]
[1754843819447,22.186,4242.7,4241.9,0.47144]
[1754843819834,0.47142,4242.1,4241.8,0.47145]
[1754843820035,0.3844,4242.0,4241.8,0.47145]
[1754843820236,0.9246,4241.9,4241.8,0.47145]
[1754843820647,0.9246,4241.8,4241.7,0.47146]
[1754843820846,23.0866,4241.8,4241.7,0.47146]
[1754843822447,0.5402,4241.4,4240.7,1.17892]
[1754843822744,0.9246,4241.4,4241.3,0.47151]
[1754843824547,1.5162,4241.4,4241.3,0.47151]
[1754843825450,0.6229,4241.0,4240.9,0.47155]
[1754843825748,1.5465,4241.0,4240.9,0.47155]
[1754843826041,23.6935,4241.5,4241.4,0.4715]
[1754843826240,0.6229,4240.6,4240.5,0.4716]
[1754843826446,1.5465,4240.6,4240.5,0.4716]
[1754843827147,1.5465,4240.6,4240.4,0.4716]
[1754843827447,1.5465,4240.5,4240.4,0.4716]
[1754843830547,1.5465,4240.1,4240.0,0.47164]
[1754843831843,0.7149,4240.0,4239.9,0.47166]
[1754843832048,0.47164,4240.1,4240.0,0.47164]
[1754843832049,0.6229,4240.1,4240.0,0.47164]
[1754843832246,0.6229,4240.3,4240.2,0.47163]
[1754843832548,0.6229,4241.1,4241.0,1.07054]
[1754843832845,22.7209,4241.1,4240.2,1.17907]
[1754843833051,22.7209,4241.1,4240.7,1.07056]
[1754843833052,0.6229,4240.8,4240.7,1.07056]
[1754843833350,0.6229,4240.8,4240.7,1.74636]
[1754843833546,0.6229,4240.8,4240.7,2.02456]
[1754843833747,0.6229,4241.0,4240.9,1.74635]
[1754843833945,22.9878,4241.0,4240.9,1.62405]
[1754843834338,1.2816,4241.3,4241.2,1.07052]
[1754843834543,23.6425,4241.3,4241.2,1.74632]
[1754843834743,23.6435,4241.3,4241.2,1.74632]
[1754843834945,0.9236,4242.1,4241.4,0.47149]
[1754843835151,22.7199,4241.6,4241.5,0.599]
[1754843835356,23.2583,4241.6,4241.5,1.553]
[1754843835649,1.1613,4241.6,4241.5,1.553]
[1754843835843,23.2563,4241.6,4241.5,1.553]
[1754843836037,23.2563,4241.6,4241.0,1.17885]
[1754843836038,0.6229,4242.0,4241.9,0.599]
[1754843836254,22.7139,4242.0,4241.9,0.599]
[1754843836753,1.5465,4242.0,4241.9,1.553]
[1754843836939,23.6355,4242.0,4241.9,1.2748]
[1754843837448,0.6229,4241.7,4241.1,0.6758]
[1754843837656,0.2649,4241.0,4240.3,0.954]
[1754843837944,0.6229,4240.9,4240.8,2.02455]
[1754843838346,0.6229,4240.9,4240.4,1.17903]
[1754843838347,0.8316,4241.2,4241.1,1.07053]
[1754843838548,22.9256,4241.2,4241.1,2.02453]
[1754843839249,22.5404,4241.2,4241.1,2.02453]
[1754843839455,0.8964,4242.0,4241.9,1.07043]
[1754843839747,0.1815,4242.0,4241.9,2.02443]
[1754843840343,1.1613,4242.0,4241.9,2.02443]
[1754843840545,1.5465,4242.0,4241.9,1.74623]
[1754843840745,1.5465,4242.0,4241.9,2.02443]
[1754843841256,0.1815,4242.0,4241.9,2.02443]
[1754843841554,1.5465,4242.0,4241.9,0.47143]
[1754843842146,0.6229,4242.0,4241.8,0.47145]
[1754843842343,0.452,4242.1,4242.0,0.23530001]
[1754843842549,1.5465,4242.1,4242.0,0.49100001]
[1754843842750,1.5465,4242.1,4242.0,0.96242001]
[1754843843150,1.5465,4242.1,4242.0,0.49100001]
[1754843843453,0.6229,4242.1,4241.9,0.47143]
[1754843843655,1.5465,4242.0,4241.9,0.47143]
[1754843844055,1.5465,4242.0,4241.9,1.2748]
[1754843844246,1.5465,4241.7,4241.6,1.74626]
[1754843844552,22.5444,4241.7,4241.6,2.02446]
[1754843847654,23.6445,4241.7,4241.6,1.74626]
[1754843847855,23.6445,4241.7,4241.6,2.02446]
[1754843848153,22.9858,4241.7,4241.6,2.02446]
[1754843848547,23.6445,4241.7,4241.6,0.47146]
[1754843848743,24.11596,4241.7,4241.6,0.47146]
[1754843848952,0.4414,4241.4,4241.3,0.47151]
[1754843849254,1.5465,4241.4,4241.3,0.47151]
[1754843849651,1.5465,4241.3,4241.2,0.47152]
[1754843849855,23.6175,4241.3,4241.2,0.47152]
[1754843850654,1.5465,4241.1,4241.0,0.47153]
[1754843851051,1.5465,4241.1,4241.0,1.07053]
[1754843851250,1.5465,4241.1,4241.0,1.74633]
[1754843853156,33.961,4242.2,4240.5,1.17897]
[1754843853157,1.5465,4242.1,4242.0,1.34572]
[1754843853351,23.5945,4242.1,4242.0,1.74622]
[1754843854357,23.5945,4242.1,4242.0,2.02442]
[1754843854358,22.9298,4242.1,4242.0,2.02442]
[1754843854856,22.2235,4242.1,4242.0,2.02442]
[1754843855254,0.9236,4242.5,4242.4,1.07038]
[1754843855255,1.5465,4242.5,4242.4,1.07038]
[1754843855455,23.5835,4242.5,4242.4,1.74618]
[1754843856746,24.05487,4242.5,4242.4,1.2748]
[1754843857063,1.543,4242.3,4242.2,0.4714]
[1754843857559,1.543,4242.2,4242.1,0.47141]
[1754843857750,0.47142,4242.1,4242.0,0.47142]
[1754843857956,1.10512,4242.1,4241.3,1.43175]
[1754843858156,1.543,4242.0,4241.9,0.47144]
[1754843858958,0.6337,4242.0,4241.3,0.253]
[1754843859164,1.543,4241.5,4241.4,1.2648]
[1754843859660,0.8954,4241.5,4241.4,1.5178]
[1754843860854,23.1109,4241.8,4241.7,1.2648]
[1754843861056,23.565,4241.8,4241.7,1.2648]
[1754843861557,23.565,4241.8,4241.7,1.73626]
[1754843862960,23.565,4241.8,4241.7,1.09556]
[1754843863157,0.1796,4241.4,4241.3,0.3872]
[1754843863356,1.091,4242.6,4241.3,6.3872]
[1754843863664,1.091,4242.6,4241.2,1.17878]
[1754843863665,1.543,4242.4,4242.3,1.09549]
[1754843863858,1.543,4242.4,4242.3,1.48269]
[1754843864861,23.573,4242.4,4242.3,1.73619]
[1754843866062,23.573,4242.4,4242.3,1.48269]
[1754843866266,23.573,4242.4,4241.5,1.98928]
[1754843866267,1.543,4241.6,4241.5,1.98928]
[1754843866657,0.8954,4241.6,4241.5,1.98928]
[1754843866954,22.022,4241.7,4241.5,1.09558]
[1754843867155,22.022,4241.7,4241.6,1.5178]
[1754843867861,23.1838,4241.7,4241.6,1.5178]
[1754843868058,22.9174,4241.7,4241.6,1.5178]
[1754843868257,23.565,4241.7,4241.6,1.5178]
[1754843868556,22.9174,4241.7,4241.6,1.5178]
[1754843868958,23.565,4241.7,4241.6,1.2648]
[1754843869159,23.565,4241.7,4241.6,0.6241]
[1754843869463,23.565,4241.7,4241.5,0.47148]
[1754843869656,1.543,4241.6,4241.5,0.47148]
[1754843869857,1.543,4241.6,4241.5,1.09558]
[1754843870663,1.543,4241.5,4241.4,0.47149]
[1754843870864,2.01448,4241.5,4241.3,1.1122]
[1754843871065,1.543,4241.4,4241.3,0.4715]
[1754843872256,1.2813,4241.2,4241.1,0.47152]
[1754843872565,23.54,4241.2,4241.1,0.47152]
[1754843872761,23.54,4241.2,4241.1,1.09562]
[1754843873062,23.54,4241.2,4241.1,1.73632]
[1754843873465,23.54,4241.2,4241.1,1.48282]
[1754843873861,21.997,4241.2,4241.1,0.47152]
[1754843874068,23.1588,4241.2,4241.1,1.98932]
[1754843874365,23.54,4241.2,4241.1,1.73632]
[1754843874559,23.54,4241.2,4241.1,1.98932]
[1754843874767,23.54,4241.2,4241.1,1.73632]
[1754843875768,23.54,4241.2,4241.1,1.09562]
[1754843875966,23.54,4241.2,4241.1,0.47152]
[1754843876165,23.54,4241.2,4241.0,0.47153]
[1754843876166,1.543,4241.1,4241.0,0.47153]
[1754843877066,1.543,4241.1,4241.0,1.09563]
[1754843877262,1.543,4241.1,4241.0,1.73633]
[1754843881862,1.543,4241.1,4240.7,0.47157]
[1754843882169,1.543,4240.8,4240.7,1.73637]
[1754843882367,21.997,4241.2,4241.1,1.73633]
[1754843882368,1.543,4241.2,4241.1,1.73633]
[1754843882570,23.485,4241.2,4241.1,1.98933]
[1754843883370,1.28175697,4241.9,4240.4,0.47161]
[1754843883371,0.1796,4241.7,4241.6,1.09557]
[1754843883571,22.3863,4241.7,4241.6,1.09557]
[1754843883769,22.8404,4241.7,4241.6,1.09557]
[1754843883968,23.1068,4241.7,4241.6,1.73627]
[1754843884168,23.488,4241.7,4241.6,1.73627]
[1754843884563,0.47147,4241.6,4241.5,0.47148]
[1754843884769,0.8954,4241.2,4241.1,1.98933]
[1754843884969,1.543,4241.7,4241.6,1.73627]
[1754843885166,23.486,4241.7,4241.6,1.73627]
[1754843885770,21.94,4241.7,4241.2,1.17879]
[1754843886067,1.5551,4241.4,4241.2,0.47151]
[1754843886269,23.5071,4241.3,4241.2,0.47151]
[1754843886665,23.5071,4241.3,4241.2,1.74191]
[1754843887969,21.952,4241.3,4241.2,2.01211]
[1754843888179,1.5551,4241.7,4241.6,1.74187]
[1754843888478,23.5071,4241.7,4241.6,1.74187]
[1754843893192,23.5071,4241.7,4241.6,1.48427]
[1754843893786,23.5071,4241.7,4241.6,1.74187]
[1754843894091,23.5071,4241.7,4241.6,1.08107]
[1754843894486,23.5071,4241.7,4241.6,0.47147]
[1754843894685,23.5071,4241.7,4241.5,0.47148]
[1754843894686,2.02657,4241.6,4241.5,0.47148]
[1754843894881,1.11479,4241.5,4241.4,0.47149]
[1754843895092,23.4601,4241.5,4241.4,0.47149]
[1754843895889,23.4601,4241.5,4240.7,1.44913]
[1754843895890,1.5551,4241.3,4241.2,0.47151]
[1754843896084,23.4571,4241.3,4241.2,0.47151]
[1754843897087,23.4571,4241.3,4240.4,1.179]
[1754843897088,1.49314,4241.1,4241.0,0.47153]
[1754843897294,24.20562756,4241.1,4241.0,0.47153]
[1754843897585,1.17866,4241.7,4241.4,0.47149]
[1754843897586,0.9118,4241.5,4241.4,0.47149]
[1754843897787,1.0972,4242.0,4241.9,0.47144]
[1754843898091,2.02654,4241.9,4241.8,1.2704]
[1754843898287,2.09375006,4241.9,4241.8,1.2704]
[1754843898482,2.09375006,4241.9,4241.4,1.13229]
[1754843898686,2.30262756,4241.5,4241.4,1.08109]
[1754843898883,0.53865006,4241.9,4241.8,0.47145]
[1754843899188,23.4551,4241.9,4241.8,1.08105]
[1754843899393,23.99375006,4241.9,4241.8,0.6096]
[1754843899695,23.99375006,4241.9,4241.8,1.2704]
[1754843900789,24.46519006,4241.9,4241.7,0.47146]
[1754843900995,2.84133912,4241.8,4241.7,0.47146]
[1754843902291,0.6433,4241.8,4241.7,1.74186]
[1754843902499,21.9,4241.9,4241.7,2.01206]
[1754843902793,22.1609,4241.9,4241.8,1.2705]
[1754843902988,22.5273,4241.9,4241.8,1.5406]
[1754843903894,23.4551,4241.9,4241.8,1.5406]
[1754843905093,23.4551,4241.9,4241.8,1.2704]
[1754843906296,23.4551,4241.9,4241.8,0.6096]
[1754843906492,23.92654,4241.9,4241.7,0.47146]
[1754843906696,1.5551,4241.8,4241.7,0.47146]
[1754843907195,1.5551,4241.7,4241.6,0.47147]
[1754843907791,0.47147,4241.6,4241.4,0.47149]
[1754843907989,0.47147,4241.6,4241.2,0.2576]
[1754843907990,0.6433,4241.1,4240.7,0.2576]
[1754843908195,0.6433,4241.1,4240.8,1.74196]
[1754843908196,1.5551,4240.9,4240.8,1.74196]
[1754843908593,1.5551,4240.9,4240.8,0.47156]
[1754843909195,1.5551,4240.9,4240.8,1.74196]
[1754843909997,1.5551,4240.9,4240.8,2.01216]
[1754843910195,1.5551,4240.9,4240.8,1.74196]
[1754843911200,1.5551,4240.9,4240.8,0.47156]
[1754843911608,1.5551,4240.9,4240.8,1.74196]
[1754843913291,1.5551,4240.9,4240.8,1.48436]
[1754843914102,1.5551,4240.9,4240.8,1.74196]
[1754843915098,1.5551,4240.4,4240.3,1.74202]
[1754843915300,23.3831,4240.4,4240.3,1.74202]
[1754843915806,23.3831,4240.4,4240.3,1.08122]
[1754843916597,23.3831,4240.4,4240.3,1.72562]
[1754843917102,23.3831,4240.4,4240.3,1.08122]
[1754843917309,23.3831,4240.4,4240.3,0.47162]
[1754843917707,22.0889,4240.4,4240.3,0.47162]
[1754843917909,23.3808,4240.4,4240.3,1.49042]
[1754843918112,23.3808,4240.4,4240.3,0.47162]
[1754843920407,0.9502,4240.3,4240.2,0.47162]
[1754843920615,1.5667,4240.3,4240.2,0.47162]
[1754843922307,1.5667,4240.3,4240.2,0.83482]
[1754843922716,1.5667,4240.3,4240.2,1.22262]
[1754843923110,1.5667,4240.3,4240.2,1.74702]
[1754843929122,1.5667,4240.3,4240.2,0.84]
[1754843929430,1.0171,4239.9,4239.8,1.2754]
[1754843929717,23.3377,4239.9,4239.8,1.74707]
[1754843929909,22.6623,4239.9,4239.1,1.67999618]
[1754843930109,1.5667,4239.3,4239.2,2.00474]
[1754843931506,1.1661,4239.3,4239.2,2.00474]
[1754843931710,0.8913,4239.3,4239.2,2.00474]
[1754843932210,2.03847,4238.9,4238.7,1.67999618]
[1754843932405,1.5667,4238.4,4238.3,0.83503]
[1754843932616,23.3707,4238.4,4238.3,0.6208]
[1754843933613,23.3707,4238.4,4238.3,0.3632]
[1754843933813,22.4205,4238.4,4238.1,1.11626]
[1754843934009,1.2919,4238.2,4238.1,1.30066]
[1754843934214,1.5667,4238.2,4238.1,1.30066]
[1754843934613,1.5667,4238.2,4238.1,1.09266]
[1754843934916,1.5667,4238.2,4238.1,2.00486]
[1754843936213,1.5667,4238.2,4237.0,1.17996]
[1754843936214,0.6165,4237.7,4237.6,1.61712]
[1754843936516,23.3637,4237.7,4237.6,2.00492]
[1754843936819,23.0889,4237.7,4237.6,2.00492]
[1754843937020,23.3637,4237.7,4237.6,2.00492]
[1754843937921,21.797,4237.7,4237.6,2.00492]
[1754843938511,0.9502,4239.5,4237.6,0.3878]
[1754843938710,0.6165,4238.7,4238.6,0.6562]
[1754843938917,23.3607,4238.7,4238.6,0.6562]
[1754843939312,23.3607,4238.7,4238.6,0.835]
[1754843939518,23.3607,4238.7,4238.6,1.3492]
[1754843939719,23.3607,4238.7,4238.6,2.0048]
[1754843940520,0.9502,4238.6,4238.2,0.47185]
[1754843940822,1.5667,4238.3,4238.2,0.47185]
[1754843941023,0.6165,4238.0,4237.9,0.47188]
[1754843941230,23.3517,4238.0,4237.9,0.47188]
[1754843941921,23.0769,4238.0,4237.9,2.00488]
[1754843942123,23.0769,4238.0,4237.0,1.17995]
[1754843942124,1.0171,4239.0,4238.2,0.47185]
[1754843942329,1.0171,4239.0,4238.9,0.631]
[1754843942523,23.3557,4239.0,4238.9,1.533]
[1754843943418,22.2317,4239.0,4238.9,1.533]
[1754843943623,21.789,4239.0,4238.9,1.533]
[1754843944020,22.2317,4239.0,4238.9,1.533]
[1754843944927,22.4055,4239.0,4238.9,1.533]
[1754843945126,22.8061,4239.0,4238.9,1.533]
[1754843945317,23.0809,4239.0,4238.9,1.1452]
[1754843945524,23.3557,4239.0,4238.9,1.1452]
[1754843945726,23.3557,4239.0,4238.9,1.5589]
[1754843945930,22.2317,4239.0,4238.9,1.5589]
[1754843946327,21.789,4239.0,4238.9,1.5589]
[1754843947224,1.0303,4239.8,4239.7,0.65]
[1754843947427,22.8153,4239.8,4239.7,1.5763]
[1754843947632,22.8153,4239.8,4239.7,2.04798]
[1754843947833,23.0777,4239.8,4239.7,2.04798]
[1754843948131,23.3525,4239.8,4239.7,2.04798]
[1754843950331,0.6166,4239.8,4239.7,2.04798]
[1754843950536,1.0303,4240.2,4240.1,2.04794]
[1754843950836,0.4415,4240.5,4240.4,1.12161]
[1754843951035,23.3395,4240.5,4240.4,2.04791]
[1754843951534,22.3926,4240.5,4239.6,1.17923]
[1754843951731,2.31102756,4240.0,4239.9,0.47166]
[1754843952034,24.09402756,4240.0,4239.9,0.84406]
[1754843952229,24.09402756,4240.0,4239.9,1.09846]
[1754843952425,24.09402756,4240.0,4239.9,1.63426]
[1754843952627,21.783,4240.0,4239.9,2.04796]
[1754843954636,23.14812756,4240.3,4240.2,1.12163]
[1754843954834,24.09502756,4240.3,4240.2,2.04793]
[1754843955131,22.2164,4240.3,4240.2,2.04793]
[1754843955336,22.0413,4240.3,4240.2,2.04793]
[1754843955939,0.2573,4240.3,4240.2,2.04793]
[1754843957235,21.777,4240.4,4240.2,2.04793]
[1754843957438,22.3936,4240.4,4240.3,1.5763]
[1754843957636,23.0657,4240.4,4240.3,1.5763]
[1754843957837,23.3405,4240.4,4240.3,1.5763]
[1754843958033,22.8073,4240.4,4240.3,1.5763]
[1754843958236,1.1136,4240.7,4240.6,0.65]
[1754843958439,22.8766,4240.7,4240.6,1.3181]
[1754843958734,23.0517,4240.7,4240.6,1.5763]
[1754843958935,23.3265,4240.7,4240.6,2.04788]
[1754843961639,21.763,4240.7,4240.6,0.47158]
[1754843961846,1.5635,4241.7,4241.6,1.35646]
[1754843962139,0.6166,4240.9,4240.8,1.0637]
[1754843962442,1.5635,4240.9,4240.8,1.5763]
[1754843963746,1.17856,4242.1,4239.8,0.2582]
[1754843963935,1.77782756,4241.2,4241.1,0.47153]
[1754843964135,0.6721,4241.1,4241.0,0.47153]
[1754843964442,1.5635,4241.1,4241.0,0.47153]
[1754843964635,1.5635,4241.1,4241.0,1.35653]
[1754843964835,1.5635,4241.1,4241.0,2.04783]
[1754843966242,0.47148,4241.6,4241.3,1.5763]
[1754843966243,0.6166,4241.4,4241.3,1.5763]
[1754843966445,21.819,4241.4,4241.3,1.5763]
[1754843966639,1.0303,4241.7,4241.6,2.04777]
[1754843966839,23.3895,4241.7,4241.6,1.5763]
[1754843967443,23.3895,4241.7,4241.6,1.1626]
[1754843967643,23.3895,4241.7,4241.6,1.63407]
[1754843967844,23.3895,4241.7,4241.6,1.1626]
[1754843968535,0.47148,4241.5,4241.4,0.47149]
[1754843968738,1.5635,4241.5,4241.4,0.47149]
[1754843969236,1.5635,4241.5,4241.4,0.65829]
[1754843969436,2.03498,4241.5,4241.4,0.65829]
[1754843969645,1.5635,4241.5,4241.4,0.65829]
[1754843970146,1.5635,4241.5,4241.4,0.84389]
[1754843970547,1.5635,4241.5,4239.0,2.09883264]
[1754843970548,0.6166,4240.9,4240.8,1.53526]
[1754843970749,0.6166,4240.9,4240.8,2.04786]
[1754843970948,0.4415,4240.9,4240.8,2.04786]
[1754843971144,22.2237,4241.1,4241.0,0.47154]
[1754843971350,22.6652,4241.1,4241.0,1.79344]
[1754843971539,22.6652,4241.1,4241.0,2.04784]
[1754843971744,23.3735,4241.1,4241.0,2.04784]
[1754843972547,24.12102756,4241.1,4241.0,2.04784]
[1754843972747,24.12102756,4241.1,4241.0,0.84394]
[1754843974748,24.12102756,4241.1,4241.0,0.47154]
[1754843975349,0.47154,4241.0,4240.9,0.47154]
[1754843975550,2.00624,4241.0,4240.9,0.47154]
[1754843975751,1.09434,4241.0,4240.8,0.47155]
[1754843976054,1.5347,4240.9,4240.8,0.47155]
[1754843978057,1.5347,4240.6,4240.5,0.65679]
[1754843978252,24.53681756,4240.6,4240.3,0.47161]
[1754843978454,1.5347,4240.4,4240.3,0.65681]
[1754843978856,1.5347,4240.4,4240.3,0.1852]
[1754843979055,0.6228,4240.2,4239.8,0.684]
[1754843979356,23.3227,4240.1,4240.0,0.65685]
[1754843979555,23.3227,4240.1,4240.0,0.6245]
[1754843979957,23.88460528,4240.1,4240.0,0.6245]
[1754843980357,23.88460528,4240.1,4240.0,0.4512]
[1754843980557,23.88460528,4240.1,4240.0,1.1546]
[1754843981153,23.88460528,4240.1,4240.0,0.3585]
[1754843981354,0.368,4239.8,4239.7,1.36798]
[1754843981561,23.78537,4239.8,4239.7,2.03848]
[1754843981750,24.34727528,4239.8,4239.7,2.03848]
[1754843981960,23.78537,4239.8,4239.7,2.03848]
[1754843982963,23.3137,4239.8,4239.7,2.03848]
[1754843984353,0.47167,4239.9,4238.9,1.67999618]
[1754843984354,1.0082,4240.5,4240.4,0.3585]
[1754843984555,1.0082,4240.5,4240.4,1.5668]
[1754843984556,23.3117,4240.5,4240.4,1.5668]
[1754843984761,2.00631,4240.5,4240.4,1.5668]
[1754843984964,23.3127,4240.5,4240.4,1.5668]
[1754843985154,23.0582,4240.5,4240.4,1.5668]
[1754843985358,22.0328,4240.5,4240.4,1.5668]
[1754843985557,1.0082,4240.8,4240.7,1.08837]
[1754843985763,1.0082,4241.1,4241.0,1.50054]
[1754843985963,22.7892,4241.1,4241.0,2.03834]
[1754843986160,23.3157,4241.1,4241.0,2.03834]
[1754843987257,23.3157,4241.1,4241.0,1.5668]
[1754843987457,23.3157,4241.1,4241.0,0.8828]
[1754843988664,23.3157,4241.1,4241.0,1.1546]